fUSD/lending_fUSD_20240104
["ID","MTS","AMOUNT","RATE_DAILY","PERIOD"]
[310161223,1704384728730,-702.74,0.00036164,2]
[310161224,1704384728741,-614.02,0.00036164,2]
[310161225,1704384728751,-782.01,0.00036164,2]
[310161226,1704384728761,-2346.06,0.00036164,2]
[310161227,1704384728771,-1144.21,0.00036164,2]
[310161228,1704384728781,-825.04,0.00036164,2]
[310161229,1704384728790,-759.74,0.00036164,2]
[310161230,1704384728800,-591.92,0.00036164,2]
[310161231,1704384728810,-500.0,0.00036164,2]
[310161232,1704384728819,-1538.71,0.00036164,2]
[310161233,1704384728830,-500.0,0.00036164,2]
[310161234,1704384728840,-1209.37,0.00036164,2]
[310161235,1704384728850,-500.0,0.00036164,2]
[310161236,1704384728860,-500.0,0.00036164,2]
[310161237,1704384728870,-1769.02,0.00036164,2]
[310161238,1704384728882,-1608.02,0.00036164,2]
[310161239,1704384728892,-866.14,0.00036164,2]
[310161240,1704384728901,-500.0,0.00036164,2]
[310161241,1704384728911,-597.7,0.00036164,2]
[310161242,1704384728921,-3238.36,0.00036164,2]
[310161243,1704384728931,-1312.71,0.00036164,2]
[310161244,1704384728941,-758.49,0.00036164,2]
[310161245,1704384728950,-861.13,0.00036164,2]
[310161246,1704384728959,-500.0,0.00036164,2]
[310161247,1704384728969,-554.04,0.00036164,2]
[310161248,1704384728980,-500.0,0.00036164,2]
[310161249,1704384728989,-910.85,0.00036164,2]
[310161250,1704384728997,-647.07,0.00036164,2]
[310161251,1704384729007,-596.22,0.00036164,2]
[310161252,1704384729016,-840.62,0.00036164,2]
[310161253,1704384729026,-552.48,0.00036164,2]
[310161254,1704384729035,-859.39,0.00036164,2]
[310161255,1704384729044,-1225.89,0.00036164,2]
[310161256,1704384729054,-957.37,0.00036164,2]
[310161257,1704384729063,-765.17,0.00036164,2]
[310161258,1704384729072,-562.44,0.00036164,2]
[310161259,1704384729082,-659.69,0.00036164,2]
[310161260,1704384729093,-1445.4,0.00036164,2]
[310161261,1704384729102,-500.0,0.00036164,2]
[310161262,1704384729112,-704.58,0.00036164,2]
[310161263,1704384729123,-616.78,0.00036164,2]
[310161264,1704384729132,-683.51,0.00036164,2]
[310161265,1704384729142,-661.23,0.00036164,2]
[310161266,1704384729151,-529.83,0.00036164,2]
[310161267,1704384729161,-782.54,0.00036164,2]
[310161268,1704384729170,-588.15,0.00036164,2]
[310161269,1704384729180,-1195.11,0.00036164,2]
[310161270,1704384729190,-674.54,0.00036164,2]
[310161271,1704384729199,-1310.86,0.00036164,2]
[310161272,1704384729208,-831.54,0.00036164,2]
[310161273,1704384729218,-283.5,0.00036164,2]
[310161274,1704384729228,-500.0,0.00036164,2]
[310161275,1704384729237,-1025.23,0.00036164,2]
[310161276,1704384729249,-1101.26,0.00036164,2]
[310161277,1704384729260,-785.28,0.00036164,2]
[310161278,1704384729272,-705.23,0.00036164,2]
[310161279,1704384729284,-1065.41,0.00036164,2]
[310161280,1704384729295,-353.62126867,0.00036164,2]
[310161281,1704384729306,-1054.98,0.00036164,2]
[310161282,1704384729317,-995.7,0.00036164,2]
[310161283,1704384729327,-744.22,0.00036164,2]
[310161284,1704384729339,-500.0,0.00036164,2]
[310161285,1704384729349,-432.30780816,0.00036164,2]
[310161286,1704384729360,-1238.86,0.00036164,2]
[310161287,1704384729370,-1427.22,0.00036164,2]
[310161288,1704384729384,-887.92,0.00036164,2]
[310161289,1704384729394,-742.23,0.00036164,2]
[310161290,1704384729405,-262.1,0.00036164,2]
[310161291,1704384729416,-666.3,0.00036164,2]
[310161292,1704384729426,-907.32,0.00036164,2]
[310161293,1704384729437,-500.0,0.00036164,2]
[310161294,1704384729447,-702.86,0.00036164,2]
[310161295,1704384729458,-500.0,0.00036164,2]
[310161296,1704384729469,-500.0,0.00036164,2]
[310161297,1704384729479,-945.74,0.00036164,2]
[310161298,1704384729489,-920.91,0.00036164,2]
[310161299,1704384729500,-500.0,0.00036164,2]
[310161300,1704384729509,-672.89,0.00036164,2]
[310161301,1704384729518,-1400.63,0.00036164,2]
[310161302,1704384729528,-535.81,0.00036164,2]
[310161303,1704384729538,-500.0,0.00036164,2]
[310161304,1704384729547,-500.0,0.00036164,2]
[310161305,1704384729558,-750.79,0.00036164,2]
[310161306,1704384729568,-1057.28,0.00036164,2]
[310161307,1704384729578,-523.13,0.00036164,2]
[310161308,1704384729588,-1335.29,0.00036164,2]
[310161309,1704384729598,-878.66,0.00036164,2]
[310161310,1704384729608,-1605.48,0.00036164,2]
[310161311,1704384729617,-500.0,0.00036164,2]
[310161312,1704384729630,-500.0,0.00036164,2]
[310161313,1704384729639,-500.0,0.00036164,2]
[310161314,1704384729649,-847.37,0.00036164,2]
[310161315,1704384729658,-762.22,0.00036164,2]
[310161316,1704384729668,-500.0,0.00036164,2]
[310161317,1704384729678,-1736.22,0.00036164,2]
[310161318,1704384729688,-668.67,0.00036164,2]
[310161319,1704384729697,-1025.7,0.00036164,2]
[310161320,1704384729707,-500.0,0.00036164,2]
[310161321,1704384729717,-530.17,0.00036164,2]
[310161322,1704384729726,-500.0,0.00036164,2]
[310161323,1704384729736,-500.0,0.00036164,2]
[310161324,1704384729746,-790.72,0.00036164,2]
[310161325,1704384729756,-500.0,0.00036164,2]
[310161326,1704384729766,-959.6,0.00036164,2]
[310161327,1704384729776,-500.0,0.00036164,2]
[310161328,1704384729786,-516.03,0.00036164,2]
[310161329,1704384729795,-506.97,0.00036164,2]
[310161330,1704384729805,-873.69,0.00036164,2]
[310161331,1704384729814,-500.0,0.00036164,2]
[310161332,1704384729824,-1032.21,0.00036164,2]
[310161333,1704384729834,-529.99,0.00036164,2]
[310161334,1704384729844,-500.0,0.00036164,2]
[310161335,1704384729854,-917.61,0.00036164,2]
[310161336,1704384729864,-500.0,0.00036164,2]
[310161337,1704384729873,-500.0,0.00036164,2]
[310161338,1704384729882,-610.7,0.00036164,2]
[310161339,1704384729892,-1220.03,0.00036164,2]
[310161340,1704384729901,-1169.06,0.00036164,2]
[310161341,1704384729910,-500.0,0.00036164,2]
[310161342,1704384729920,-534.36,0.00036164,2]
[310161343,1704384729930,-631.5,0.00036164,2]
[310161344,1704384729939,-1507.11,0.00036164,2]
[310161345,1704384729949,-680.74,0.00036164,2]
[310161346,1704384729959,-500.0,0.00036164,2]
[310161347,1704384729972,-500.0,0.00036164,2]
[310161348,1704384729983,-2169.33,0.00036164,2]
[310161349,1704384729992,-641.20131235,0.00036164,2]
[310161350,1704384730002,-2030.09,0.00036164,2]
[310161351,1704384730012,-500.0,0.00036164,2]
[310161352,1704384730022,-1479.9,0.00036164,2]
[310161353,1704384730032,-500.0,0.00036164,2]
[310161354,1704384730042,-500.0,0.00036164,2]
[310161355,1704384730052,-822.67,0.00036164,2]
[310161356,1704384730061,-3860.65,0.00036164,2]
[310161357,1704384730071,-1227.94,0.00036164,2]
[310161358,1704384730081,-391.00293664,0.00036164,2]
[310161359,1704384730090,-1694.53,0.00036164,2]
[310161360,1704384730100,-654.78,0.00036164,2]
[310161361,1704384730109,-675.26,0.00036164,2]
[310161362,1704384730119,-1024.69,0.00036164,2]
[310161363,1704384730129,-2166.67,0.00036164,2]
[310161364,1704384730138,-500.0,0.00036164,2]
[310161365,1704384730147,-500.0,0.00036164,2]
[310161366,1704384730156,-644.95,0.00036164,2]
[310161367,1704384730165,-6237.21,0.00036164,2]
[310161368,1704384730174,-2236.13,0.00036164,2]
[310161369,1704384730183,-500.0,0.00036164,2]
[310161370,1704384730192,-1565.67,0.00036164,2]
[310161371,1704384730201,-748.67,0.00036164,2]
[310161372,1704384730210,-1806.87,0.00036164,2]
[310161373,1704384730219,-500.0,0.00036164,2]
[310161374,1704384730228,-1248.14,0.00036164,2]
[310161375,1704384730238,-7320.87,0.00036164,2]
[310161376,1704384730248,-500.0,0.00036164,2]
[310161377,1704384730257,-596.18,0.00036164,2]
[310161378,1704384730266,-712.06,0.00036164,2]
[310161379,1704384730275,-1160.21,0.00036164,2]
[310161380,1704384730284,-1547.86,0.00036164,2]
[310161381,1704384730293,-583.13,0.00036164,2]
[310161382,1704384730303,-1053.44,0.00036164,2]
[310161383,1704384730312,-11509.81,0.00036164,2]
[310161384,1704384730322,-500.0,0.00036164,2]
[310161385,1704384730331,-4480.87,0.00036164,2]
[310161386,1704384730341,-500.0,0.00036164,2]
[310161387,1704384730350,-983.01,0.00036164,2]
[310161388,1704384730360,-186.40824939,0.00036164,2]
[310161389,1704384730370,-22757.31,0.00036164,2]
[310161390,1704384730381,-1810.3,0.00036164,2]
[310161391,1704384730391,-500.0,0.00036164,2]
[310161392,1704384730402,-500.0,0.00036164,2]
[310161393,1704384730415,-1146.84,0.00036164,2]
[310161394,1704384730424,-10482.29,0.00036164,2]
[310161395,1704384730433,-682.62,0.00036164,2]
[310161396,1704384730444,-646.84,0.00036164,2]
[310161397,1704384730454,-2236.54,0.00036164,2]
[310161398,1704384730465,-5241.12,0.00036164,2]
[310161399,1704384730475,-3000.04,0.00036164,2]
[310161400,1704384730486,-562.73,0.00036164,2]
[310161401,1704384730495,-1267.2,0.00036164,2]
[310161402,1704384730506,-570.19,0.00036164,2]
[310161403,1704384730515,-1044.59,0.00036164,2]
[310161404,1704384730525,-1733.36,0.00036164,2]
[310161405,1704384730535,-506.99,0.00036164,2]
[310161406,1704384730544,-2344.65,0.00036164,2]
[310161407,1704384730555,-500.0,0.00036164,2]
[310161408,1704384730564,-1148.98,0.00036164,2]
[310161409,1704384730575,-535.13,0.00036164,2]
[310161410,1704384730584,-500.0,0.00036164,2]
[310161411,1704384730594,-3957.27,0.00036164,2]
[310161412,1704384730604,-666.95,0.00036164,2]
[310161413,1704384730613,-4906.37,0.00036164,2]
[310161414,1704384730623,-781.77,0.00036164,2]
[310161415,1704384730633,-3313.6,0.00036164,2]
[310161416,1704384730643,-500.0,0.00036164,2]
[310161417,1704384730653,-500.0,0.00036164,2]
[310161418,1704384730662,-500.0,0.00036164,2]
[310161419,1704384730672,-1046.86,0.00036164,2]
[310161420,1704384730681,-150.0,0.00036164,2]
[310161421,1704384730691,-521.63,0.00036164,2]
[310161422,1704384730701,-153.21142636,0.00036164,2]
[310161423,1704384730710,-3795.31,0.00036164,2]
[310161424,1704384730719,-680.9,0.00036164,2]
[310161425,1704384730729,-744.5,0.00036164,2]
[310161426,1704384730739,-40011.89,0.00036164,2]
[310161427,1704384730748,-941.09,0.00036164,2]
[310161428,1704384730758,-4440.8,0.00036164,2]
[310161429,1704384730768,-3124.54,0.00036164,2]
[310161430,1704384730778,-575.77,0.00036164,2]
[310161431,1704384730789,-529.49,0.00036164,2]
[310161432,1704384730798,-500.0,0.00036164,2]
[310161433,1704384730807,-500.0,0.00036164,2]
[310161434,1704384730816,-500.0,0.00036164,2]
[310161435,1704384730825,-500.0,0.00036164,2]
[310161436,1704384730835,-500.0,0.00036164,2]
[310161437,1704384730845,-500.0,0.00036164,2]
[310161438,1704384730855,-566.18,0.00036164,2]
[310161439,1704384730864,-500.0,0.00036164,2]
[310161440,1704384730876,-11794.58,0.00036164,2]
[310161441,1704384730885,-500.0,0.00036164,2]
[310161442,1704384730895,-500.0,0.00036164,2]
[310161443,1704384730904,-1416.07,0.00036164,2]
[310161444,1704384730913,-500.0,0.00036164,2]
[310161445,1704384730923,-1935.18,0.00036164,2]
[310161446,1704384730933,-1254.54,0.00036164,2]
[310161447,1704384730942,-423.82921616,0.00036164,2]
[310161448,1704384730951,-2189.6,0.00036164,2]
[310161449,1704384730960,-500.0,0.00036164,2]
[310161450,1704384730969,-1093.1,0.00036164,2]
[310161451,1704384730979,-500.0,0.00036164,2]
[310161452,1704384730989,-746.5,0.00036164,2]
[310161453,1704384730999,-500.0,0.00036164,2]
[310161454,1704384731009,-1922.89,0.00036164,2]
[310161455,1704384731019,-500.0,0.00036164,2]
[310161456,1704384731030,-500.0,0.00036164,2]
[310161457,1704384731041,-3029.2,0.00036164,2]
[310161458,1704384731051,-1065.96,0.00036164,2]
[310161459,1704384731060,-500.0,0.00036164,2]
[310161460,1704384731070,-1007.95,0.00036164,2]
[310161461,1704384731080,-11096.0,0.00036164,2]
[310161462,1704384731090,-747.54,0.00036164,2]
[310161463,1704384731099,-760.32,0.00036164,2]
[310161464,1704384731108,-12156.16,0.00036164,2]
[310161465,1704384731118,-484.68963466,0.00036164,2]
[310161466,1704384731128,-834.78,0.00036164,2]
[310161467,1704384731138,-1718.28,0.00036164,2]
[310161468,1704384731147,-611.3,0.00036164,2]
[310161469,1704384731157,-697.33,0.00036164,2]
[310161470,1704384731166,-1413.99,0.00036164,2]
[310161471,1704384731176,-697.67,0.00036164,2]
[310161472,1704384731185,-1281.58,0.00036164,2]
[310161473,1704384731195,-883.92,0.00036164,2]
[310161474,1704384731204,-520.32,0.00036164,2]
[310161475,1704384731214,-1163.39,0.00036164,2]
[310161476,1704384731224,-1053.47,0.00036164,2]
[310161477,1704384731234,-726.31,0.00036164,2]
[310161478,1704384731243,-773.87,0.00036164,2]
[310161479,1704384731253,-3994.67,0.00036164,2]
[310161480,1704384731262,-500.0,0.00036164,2]
[310161481,1704384731272,-528.67,0.00036164,2]
[310161482,1704384731281,-891.04,0.00036164,2]
[310161483,1704384731290,-2976.44,0.00036164,2]
[310161484,1704384731299,-902.18,0.00036164,2]
[310161485,1704384731309,-1129.74,0.00036164,2]
[310161486,1704384731319,-8714.16,0.00036164,2]
[310161487,1704384731328,-500.0,0.00036164,2]
[310161488,1704384731338,-709.87,0.00036164,2]
[310161489,1704384731347,-573.28,0.00036164,2]
[310161490,1704384731357,-617.6,0.00036164,2]
[310161491,1704384731367,-539.92,0.00036164,2]
[310161492,1704384731380,-500.0,0.00036164,2]
[310161493,1704384731389,-2912.75,0.00036164,2]
[310161494,1704384731399,-2375.82,0.00036164,2]
[310161495,1704384731408,-500.0,0.00036164,2]
[310161496,1704384731418,-880.41,0.00036164,2]
[310161497,1704384731428,-500.0,0.00036164,2]
[310161498,1704384731437,-500.0,0.00036164,2]
[310161499,1704384731447,-990.05,0.00036164,2]
[310161500,1704384731456,-712.84,0.00036164,2]
[310161501,1704384731467,-500.0,0.00036164,2]
[310161502,1704384731476,-393.32964335,0.00036164,2]
[310161503,1704384731485,-1899.71,0.00036164,2]
[310161504,1704384731495,-704.89,0.00036164,2]
[310161505,1704384731505,-1360.68,0.00036164,2]
[310161506,1704384731514,-1752.91,0.00036164,2]
[310161507,1704384731524,-846.97,0.00036164,2]
[310161508,1704384731534,-500.0,0.00036164,2]
[310161509,1704384731543,-4094.39,0.00036164,2]
[310161510,1704384731554,-1446.57,0.00036164,2]
[310161511,1704384731563,-561.91,0.00036164,2]
[310161512,1704384731573,-1589.28,0.00036164,2]
[310161513,1704384731582,-500.0,0.00036164,2]
[310161514,1704384731591,-834.84,0.00036164,2]
[310161515,1704384731601,-500.0,0.00036164,2]
[310161516,1704384731610,-1546.98,0.00036164,2]
[310161517,1704384731620,-1093.14,0.00036164,2]
[310161518,1704384731631,-564.13,0.00036164,2]
[310161519,1704384731640,-1945.09,0.00036164,2]
[310161520,1704384731650,-2073.94,0.00036164,2]
[310161521,1704384731659,-893.8,0.00036164,2]
[310161522,1704384731668,-900.7,0.00036164,2]
[310161523,1704384731678,-12496.39,0.00036164,2]
[310161524,1704384731688,-561.96,0.00036164,2]
[310161525,1704384731697,-1450.8,0.00036164,2]
[310161526,1704384731707,-514.0,0.00036164,2]
[310161527,1704384731716,-500.0,0.00036164,2]
[310161528,1704384731725,-500.0,0.00036164,2]
[310161529,1704384731734,-1205.79,0.00036164,2]
[310161530,1704384731743,-621.58,0.00036164,2]
[310161531,1704384731753,-500.0,0.00036164,2]
[310161532,1704384731763,-881.27,0.00036164,2]
[310161533,1704384731772,-10382.29,0.00036164,2]
[310161534,1704384731781,-3417.84,0.00036164,2]
[310161535,1704384731790,-2270.39,0.00036164,2]
[310161536,1704384731801,-210.29240163,0.00036164,2]
[310161537,1704384731810,-578.21,0.00036164,2]
[310161538,1704384731821,-987.12,0.00036164,2]
[310161539,1704384731830,-552.04,0.00036164,2]
[310161540,1704384731839,-1396.67,0.00036164,2]
[310161541,1704384731849,-656.43,0.00036164,2]
[310161542,1704384731858,-940.22,0.00036164,2]
[310161543,1704384731868,-427.03639007,0.00036164,2]
[310161544,1704384731878,-1079.52,0.00036164,2]
[310161545,1704384731887,-1439.1,0.00036164,2]
[310161546,1704384731897,-500.0,0.00036164,2]
[310161547,1704384731906,-500.0,0.00036164,2]
[310161548,1704384731916,-1088.28,0.00036164,2]
[310161549,1704384731926,-5839.49,0.00036164,2]
[310161550,1704384731935,-500.0,0.00036164,2]
[310161551,1704384731945,-1904.93,0.00036164,2]
[310161552,1704384731955,-1535.77,0.00036164,2]
[310161553,1704384731966,-1236.96,0.00036164,2]
[310161554,1704384731976,-500.0,0.00036164,2]
[310161555,1704384731989,-500.0,0.00036164,2]
[310161556,1704384731999,-500.0,0.00036164,2]
[310161557,1704384732009,-3487.16,0.00036164,2]
[310161558,1704384732018,-4880.8,0.00036164,2]
[310161559,1704384732028,-568.13,0.00036164,2]
[310161560,1704384732037,-745.3,0.00036164,2]
[310161561,1704384732047,-2004.58,0.00036164,2]
[310161562,1704384732057,-809.18,0.00036164,2]
[310161563,1704384732067,-8885.11,0.00036164,2]
[310161564,1704384732077,-1186.38,0.00036164,2]
[310161565,1704384732087,-500.0,0.00036164,2]
[310161566,1704384732097,-500.0,0.00036164,2]
[310161567,1704384732107,-1779.45,0.00036164,2]
[310161568,1704384732117,-1353.33,0.00036164,2]
[310161569,1704384732127,-1121.93,0.00036164,2]
[310161570,1704384732136,-500.0,0.00036164,2]
[310161571,1704384732146,-1800.36,0.00036164,2]
[310161572,1704384732156,-206.0,0.0003617,2]
[310161573,1704384732166,-207.0,0.0003617,2]
[310161574,1704384732176,-150.0,0.00036174,2]
[310161575,1704384732186,-150.0,0.00036175,2]
[310161576,1704384732196,-150.0,0.00036177,2]
[310161577,1704384732206,-150.0,0.00036178,2]
[310161578,1704384732216,-150.0,0.00036179,2]
[310161579,1704384732226,-150.0,0.0003618,2]
[310161580,1704384732235,-150.0,0.00036181,2]
[310161581,1704384732245,-30398.44,0.00036185,4]
[310161582,1704384732255,-150.0,0.00036186,2]
[310161583,1704384732265,-150.0,0.0003619,2]
[310161584,1704384732276,-366.30677295,0.00036194,9]
[310161585,1704384732285,-150.0,0.00036207,2]
[310161586,1704384732295,-150.0,0.00036219,2]
[310161587,1704384732305,-150.0,0.00036237,2]
[310161588,1704384732316,-150.59,0.00036239,2]
[310161589,1704384732326,-150.0,0.00036249,2]
[310161590,1704384732335,-150.0,0.00036253,2]
[310161591,1704384732345,-154.23478519,0.00036259,14]
[310161592,1704384732355,-150.0,0.0003627,2]
[310161593,1704384732365,-150.0,0.00036273,2]
[310161594,1704384732378,-150.0,0.00036277,2]
[310161595,1704384732389,-300.0,0.00036286,2]
[310161596,1704384732401,-366.30677295,0.00036295,9]
[310161597,1704384732411,-150.0,0.00036296,2]
[310161598,1704384732423,-151.3449159,0.00036302,14]
[310161599,1704384732432,-150.0,0.00036308,2]
[310161600,1704384732442,-730.52,0.00036315,7]
[310161601,1704384732452,-730.52,0.00036315,7]
[310161602,1704384732463,-730.52,0.00036315,7]
[310161603,1704384732473,-730.52,0.00036315,7]
[310161604,1704384732483,-150.0,0.00036321,2]
[310161605,1704384732493,-150.0,0.00036323,2]
[310161606,1704384732503,-153.84,0.00036325,2]
[310161607,1704384732513,-150.0,0.00036331,2]
[310161608,1704384732523,-1000.0,0.00036334,10]
[310161609,1704384732533,-1000.0,0.00036334,10]
[310161610,1704384732543,-152.79793013,0.00036344,14]
[310161611,1704384732553,-300.0,0.00036354,5]
[310161612,1704384732563,-150.0,0.00036363,2]
[310161613,1704384732572,-542.69938815,0.00036371,14]
[310161614,1704384732582,-150.0,0.00036374,2]
[310161615,1704384732592,-159.57499854,0.00036379,14]
[310161616,1704384732602,-150.0,0.00036381,2]
[310161617,1704384732611,-150.0,0.00036382,2]
[310161618,1704384732623,-310.14276357,0.00036383,2]
[310161619,1704384732633,-583.14,0.00036391,2]
[310161620,1704384732643,-366.30677295,0.00036395,9]
[310161621,1704384732654,-151.36920845,0.00036398,14]
[310161622,1704384732664,-17397.0,0.000364,3]
[310161623,1704384732673,-216.0,0.000364,25]
[310161624,1704384732683,-151.765019,0.00036403,14]
[310161625,1704384732693,-150.0,0.00036404,2]
[310161626,1704384732703,-813.3059497,0.00036413,2]
[310161627,1704384732714,-381.8107434,0.00036413,2]
[310161628,1704384732724,-212.5087915,0.00036413,2]
[310161629,1704384732733,-212.5087915,0.00036413,2]
[310161630,1704384732743,-150.0,0.00036417,2]
[310161631,1704384732753,-150.0,0.00036418,2]
[310161632,1704384732763,-150.0,0.00036427,2]
[310161633,1704384732774,-1968.74,0.00036437,2]
[310161634,1704384732783,-3576.92,0.00036437,2]
[310161635,1704384732793,-5310.38,0.00036437,2]
[310161636,1704384732802,-5485.86,0.00036437,2]
[310161637,1704384732812,-1727.19,0.00036437,2]
[310161638,1704384732821,-981.47,0.00036437,2]
[310161639,1704384732831,-2791.07,0.00036437,2]
[310161640,1704384732841,-151.36920845,0.00036437,14]
[310161641,1704384732851,-545.35,0.00036437,2]
[310161642,1704384732861,-3707.22,0.00036437,2]
[310161643,1704384732870,-887.38,0.00036437,2]
[310161644,1704384732880,-830.05,0.00036437,2]
[310161645,1704384732889,-1695.17,0.00036437,2]
[310161646,1704384732898,-1057.1,0.00036437,2]
[310161647,1704384732908,-742.18,0.00036437,2]
[310161648,1704384732918,-4293.88,0.00036437,2]
[310161649,1704384732927,-2374.14,0.00036437,2]
[310161650,1704384732937,-1229.49,0.00036437,2]
[310161651,1704384732946,-150.0,0.00036437,2]
[310161652,1704384732955,-150.0,0.00036437,2]
[310161653,1704384732965,-500.0,0.00036437,2]
[310161654,1704384732974,-2261.59,0.00036437,2]
[310161655,1704384732984,-1642.49,0.00036437,2]
[310161656,1704384732994,-500.0,0.00036437,2]
[310161657,1704384733004,-576.77,0.00036438,2]
[310161658,1704384733013,-1403.56,0.00036438,2]
[310161659,1704384733024,-500.0,0.00036438,2]
[310161660,1704384733034,-500.0,0.00036438,2]
[310161661,1704384733044,-500.0,0.00036438,2]
[310161662,1704384733054,-589.83,0.00036438,2]
[310161663,1704384733065,-768.69,0.00036438,2]
[310161664,1704384733074,-603.66,0.00036438,2]
[310161665,1704384733085,-599.73,0.00036438,2]
[310161666,1704384733095,-609.87,0.00036438,2]
[310161667,1704384733105,-607.88,0.00036438,2]
[310161668,1704384733115,-399.81111445,0.00036438,2]
[310161669,1704384733126,-500.0,0.00036438,2]
[310161670,1704384733136,-911.18,0.00036438,2]
[310161671,1704384733146,-500.0,0.00036438,2]
[310161672,1704384733156,-718.24,0.00036438,2]
[310161673,1704384733165,-690.39,0.00036438,2]
[310161674,1704384733175,-500.0,0.00036438,2]
[310161675,1704384733185,-712.49,0.00036438,2]
[310161676,1704384733194,-500.0,0.00036438,2]
[310161677,1704384733204,-500.0,0.00036438,2]
[310161678,1704384733214,-500.0,0.00036438,2]
[310161679,1704384733225,-582.68,0.00036438,2]
[310161680,1704384733235,-500.0,0.00036438,2]
[310161681,1704384733244,-1117.06,0.00036438,2]
[310161682,1704384733254,-391.93201012,0.00036438,2]
[310161683,1704384733264,-500.0,0.00036438,2]
[310161684,1704384733273,-585.66,0.00036438,2]
[310161685,1704384733283,-500.0,0.00036438,2]
[310161686,1704384733294,-789.66,0.00036438,2]
[310161687,1704384733304,-500.0,0.00036438,2]
[310161688,1704384733313,-500.0,0.00036438,2]
[310161689,1704384733323,-500.0,0.00036438,2]
[310161690,1704384733333,-500.0,0.00036438,2]
[310161691,1704384733342,-500.0,0.00036438,2]
[310161692,1704384733351,-500.0,0.00036438,2]
[310161693,1704384733361,-500.0,0.00036438,2]
[310161694,1704384733372,-500.0,0.00036438,2]
[310161695,1704384733382,-500.0,0.00036438,2]
[310161696,1704384733391,-867.28,0.00036438,2]
[310161697,1704384733401,-764.44,0.00036438,2]
[310161698,1704384733413,-883.27,0.00036438,2]
[310161699,1704384733422,-500.0,0.00036438,2]
[310161700,1704384733431,-500.0,0.00036438,2]
[310161701,1704384733441,-842.43,0.00036438,2]
[310161702,1704384733451,-682.97,0.00036438,2]
[310161703,1704384733462,-500.0,0.00036438,2]
[310161704,1704384733472,-500.0,0.00036438,2]
[310161705,1704384733482,-670.92,0.00036438,2]
[310161706,1704384733492,-500.0,0.00036438,2]
[310161707,1704384733503,-1005.13,0.00036438,2]
[310161708,1704384733513,-1406.92,0.00036438,2]
[310161709,1704384733523,-725.93,0.00036438,2]
[310161710,1704384733532,-699.62,0.00036438,2]
[310161711,1704384733542,-1117.49,0.00036438,2]
[310161712,1704384733552,-674.55,0.00036438,2]
[310161713,1704384733561,-500.0,0.00036438,2]
[310161714,1704384733571,-677.2,0.00036438,2]
[310161715,1704384733580,-500.0,0.00036438,2]
[310161716,1704384733590,-500.0,0.00036438,2]
[310161717,1704384733599,-500.0,0.00036438,2]
[310161718,1704384733609,-495.82824685,0.00036438,2]
[310161719,1704384733619,-782.63,0.00036438,2]
[310161720,1704384733630,-500.0,0.00036438,2]
[310161721,1704384733640,-510.31,0.00036438,2]
[310161722,1704384733650,-901.96,0.00036438,2]